fUSD/lending_fUSD_20250929
["ID","MTS","AMOUNT","RATE_DAILY","PERIOD"]
[388439586,1759168355498,-400.0,0.00033219,120]
[388439587,1759168355537,-400.0,0.00033219,120]
[388439588,1759168355576,-400.0,0.00033219,120]
[388439589,1759168355615,-400.0,0.00033219,120]
[388439590,1759168355657,-400.0,0.00033219,120]
[388439591,1759168355699,-584.05,0.00033219,120]
[388439592,1759168355741,-4166.66,0.00033219,120]
[388439593,1759168355782,-400.0,0.00033219,120]
[388439594,1759168355824,-400.0,0.00033219,120]
[388439595,1759168355868,-400.0,0.00033219,120]
[388439596,1759168355912,-400.0,0.00033219,120]
[388439597,1759168355961,-401.93966937,0.00033219,120]
[388439598,1759168356009,-400.0,0.00033219,120]
[388439599,1759168356054,-584.05,0.00033219,120]
[388439600,1759168356101,-4166.66,0.00033219,120]
[388439601,1759168356151,-400.0,0.00033219,120]
[388439602,1759168356195,-400.0,0.00033219,120]
[388439603,1759168356240,-400.0,0.00033219,120]
[388439604,1759168356282,-428.37834402,0.00033219,120]
[388439605,1759168356323,-584.05,0.00033219,120]
[388439606,1759168356365,-400.0,0.00033219,120]
[388439607,1759168356407,-4166.66,0.00033219,120]
[388439608,1759168356448,-400.0,0.00033219,120]
[388439609,1759168356488,-400.0,0.00033219,120]
[388439610,1759168356527,-400.0,0.00033219,120]
[388439611,1759168356566,-584.05,0.00033219,120]
[388439612,1759168356605,-400.0,0.00033219,120]
[388439613,1759168356647,-4166.66,0.00033219,120]
[388439614,1759168356688,-400.0,0.00033219,120]
[388439615,1759168357156,-400.0,0.00033219,120]
[388439616,1759168357203,-400.0,0.00033219,120]
[388439617,1759168357244,-400.0,0.00033219,120]
[388439618,1759168357281,-584.05,0.00033219,120]
[388439619,1759168357319,-400.0,0.00033219,120]
[388439620,1759168357356,-4166.66,0.00033219,120]
[388439621,1759168357392,-400.0,0.00033219,120]
[388439622,1759168357428,-400.0,0.00033219,120]
[388439623,1759168357464,-400.0,0.00033219,120]
[388439624,1759168357501,-400.0,0.00033219,120]
[388439625,1759168357536,-584.05,0.00033219,120]
[388439626,1759168357572,-400.0,0.00033219,120]
[388439627,1759168357607,-4166.66,0.00033219,120]
[388439628,1759168357643,-400.0,0.00033219,120]
[388439629,1759168357679,-400.0,0.00033219,120]
[388439630,1759168357714,-400.0,0.00033219,120]
[388439631,1759168357750,-400.0,0.00033219,120]
[388439632,1759168357787,-584.05,0.00033219,120]
[388439633,1759168357823,-400.0,0.00033219,120]
[388439634,1759168357860,-4166.82,0.00033219,120]
[388439635,1759168357896,-400.0,0.00033219,120]
[388439636,1759168357933,-400.0,0.00033219,120]
[388439637,1759168357970,-400.0,0.00033219,120]
[388439638,1759168358008,-584.05,0.00033219,120]
[388439639,1759168358048,-400.0,0.00033219,120]
[388439640,1759168358088,-400.0,0.00033219,120]
[388439641,1759168358131,-400.0,0.00033219,120]
[388439642,1759168358180,-584.05,0.00033219,120]
[388439643,1759168358229,-400.0,0.00033219,120]
[388439644,1759168358276,-400.0,0.00033219,120]
[388439645,1759168358325,-400.0,0.00033219,120]
[388439646,1759168358371,-584.05,0.00033219,120]
[388439647,1759168358415,-400.0,0.00033219,120]
[388439648,1759168358458,-400.0,0.00033219,120]
[388439649,1759168358499,-584.05,0.00033219,120]
[388439650,1759168358541,-400.0,0.00033219,120]
[388439651,1759168358580,-400.0,0.00033219,120]
[388439652,1759168358621,-400.0,0.00033219,120]
[388439653,1759168358664,-400.0,0.00033219,120]
[388439654,1759168358705,-400.0,0.00033219,120]
[388439655,1759168358746,-335.70159867,0.00033219,120]
[388439656,1759168358786,-584.05,0.00033219,120]
[388439657,1759168358829,-400.0,0.00033219,120]
[388439658,1759168358870,-400.0,0.00033219,120]
[388439659,1759168358913,-1717.48,0.00033219,120]
[388439660,1759168358956,-544.53622228,0.00033219,120]
[388439661,1759168358999,-584.21,0.00033219,120]
[388439662,1759168359041,-400.0,0.00033219,120]
[388439663,1759168359082,-1717.48,0.00033219,120]
[388439664,1759168359121,-400.0,0.00033219,120]
[388439665,1759168359162,-1717.48,0.00033219,120]
[388439666,1759168359203,-400.0,0.00033219,120]
[388439667,1759168359243,-1717.48,0.00033219,120]
[388439668,1759168359283,-434.12789284,0.00033219,120]
[388439669,1759168359326,-1717.48,0.00033219,120]
[388439670,1759168359367,-400.0,0.00033219,120]
[388439671,1759168359408,-1717.48,0.00033219,120]
[388439672,1759168359450,-400.0,0.00033219,120]
[388439673,1759168359489,-1717.48,0.00033219,120]
[388439674,1759168359528,-400.0,0.00033219,120]
[388439675,1759168359568,-1717.48,0.00033219,120]
[388439676,1759168359607,-400.0,0.00033219,120]
[388439677,1759168359647,-530.34925256,0.00033219,120]
[388439678,1759168359687,-1717.48,0.00033219,120]
[388439679,1759168359725,-248.85041541,0.00033219,120]
[388439680,1759168359763,-1717.48,0.00033219,120]
[388439681,1759168359801,-400.0,0.00033219,120]
[388439682,1759168359839,-698.33,0.00033219,120]
[388439683,1759168359878,-1717.48,0.00033219,120]
[388439684,1759168359921,-400.0,0.00033219,120]
[388439685,1759168359962,-1717.48,0.00033219,120]
[388439686,1759168360000,-698.33,0.00033219,120]
[388439687,1759168360040,-400.0,0.00033219,120]
[388439688,1759168360080,-1717.48,0.00033219,120]
[388439689,1759168360120,-698.33,0.00033219,120]
[388439690,1759168360162,-400.0,0.00033219,120]
[388439691,1759168360203,-698.33,0.00033219,120]
[388439692,1759168360248,-1717.48,0.00033219,120]
[388439693,1759168360293,-400.0,0.00033219,120]
[388439694,1759168360331,-698.33,0.00033219,120]
[388439695,1759168360373,-1717.48,0.00033219,120]
[388439696,1759168360412,-400.0,0.00033219,120]
[388439697,1759168360451,-698.33,0.00033219,120]
[388439698,1759168360491,-1717.48,0.00033219,120]
[388439699,1759168360531,-400.0,0.00033219,120]
[388439700,1759168360568,-698.33,0.00033219,120]
[388439701,1759168360605,-1717.48,0.00033219,120]
[388439702,1759168360642,-698.33,0.00033219,120]
[388439703,1759168360679,-1717.48,0.00033219,120]
[388439704,1759168360717,-400.0,0.00033219,120]
[388439705,1759168360756,-698.33,0.00033219,120]
[388439706,1759168360795,-1717.48,0.00033219,120]
[388439707,1759168360835,-400.0,0.00033219,120]
[388439708,1759168360877,-698.33,0.00033219,120]
[388439709,1759168361261,-1717.48,0.00033219,120]
[388439710,1759168361307,-698.33,0.00033219,120]
[388439711,1759168361349,-1717.48,0.00033219,120]
[388439712,1759168361392,-400.0,0.00033219,120]
[388439713,1759168361432,-698.33,0.00033219,120]
[388439714,1759168361472,-4694.43,0.00033219,120]
[388439715,1759168361512,-400.0,0.00033219,120]
[388439716,1759168361551,-1717.48,0.00033219,120]
[388439717,1759168361591,-400.0,0.00033219,120]
[388439718,1759168361631,-698.33,0.00033219,120]
[388439719,1759168361669,-4694.43,0.00033219,120]
[388439720,1759168361708,-400.0,0.00033219,120]
[388439721,1759168361748,-1717.48,0.00033219,120]
[388439722,1759168361788,-400.0,0.00033219,120]
[388439723,1759168361829,-543.42958027,0.00033219,120]
[388439724,1759168361870,-698.33,0.00033219,120]
[388439725,1759168361914,-4694.43,0.00033219,120]
[388439726,1759168361960,-1717.61342369,0.00033219,120]
[388439727,1759168362003,-400.0,0.00033219,120]
[388439728,1759168362048,-4694.43,0.00033219,120]
[388439729,1759168362093,-698.33,0.00033219,120]
[388439730,1759168362139,-535.57775185,0.00033219,120]
[388439731,1759168362180,-4694.43,0.00033219,120]
[388439732,1759168362220,-698.33,0.00033219,120]
[388439733,1759168362259,-4694.43,0.00033219,120]
[388439734,1759168362303,-698.33,0.00033219,120]
[388439735,1759168362345,-2467.71952148,0.00033219,120]
[388439736,1759168382363,150.0,0.00028947,120]
[388439737,1759168385896,150.0,0.00015977,7]
[388439738,1759168386963,250.0,0.00015965,2]
[388439739,1759168388867,-250.0,0.00016619,2]
[388439740,1759168388878,-150.0,0.00016619,2]
[388439741,1759168388888,-150.0,0.00016619,2]
[388439742,1759168388900,-150.0,0.00016619,2]
[388439743,1759168388910,-150.0,0.00016619,2]
[388439744,1759168388922,-150.0,0.00016619,2]
[388439745,1759168388939,-150.0,0.00016619,2]
[388439746,1759168388950,-150.0,0.00016619,2]
[388439747,1759168388959,-150.0,0.00016619,2]
[388439748,1759168388970,-150.0,0.00016619,2]
[388439749,1759168388980,-150.0,0.00016619,2]
[388439750,1759168388991,-159.66536364,0.00016619,2]
[388439751,1759168389000,-150.0,0.00016619,2]
[388439752,1759168389011,-236.18046681,0.00016629,2]
[388439753,1759168389021,-195.0,0.00016638,2]
[388439754,1759168389031,-9000.0,0.00016658,2]
[388439755,1759168389041,-1970.36933673,0.00016658,2]
[388439756,1759168389051,-500.0,0.000168,6]
[388439757,1759168389061,-1311.14503,0.0001683,2]
[388439758,1759168389071,-3480.27626798,0.0001689,2]
[388439759,1759168389082,-869.01818911,0.00016891,2]
[388439760,1759168389092,-9356.22,0.000169,2]
[388439761,1759168389102,-1100.0,0.000169,6]
[388439762,1759168389112,-393.58360356,0.000169,2]
[388439763,1759168389123,-156.19622201,0.000169,2]
[388439764,1759168389133,-590.72692019,0.000169,2]
[388439765,1759168389143,-165.60462925,0.000169,2]
[388439766,1759168389154,-146389.7079,0.000169,2]
[388439767,1759168389164,-150.0,0.00016927,2]
[388439768,1759168389174,-15948.12767072,0.00016927,2]
[388439769,1759168389191,-350.009895,0.00016927,2]
[388439770,1759168389206,-499.16148894,0.00016927,2]
[388439771,1759168389283,-327.7799999,0.00016927,2]
[388439772,1759168389295,-633.49324892,0.00016927,2]
[388439773,1759168389358,-8703.17769652,0.00016927,2]
[388439774,1759168389368,-19999.99,0.00016927,2]
[388439775,1759168389378,-4447.35,0.00016927,2]
[388439776,1759168389388,-1311.14503,0.0001695,2]
[388439777,1759168389398,-500.0,0.00016973,2]
[388439778,1759168389408,-500.0,0.00016973,2]
[388439779,1759168389418,-500.0,0.00016973,2]
[388439780,1759168389428,-500.0,0.00016973,2]
[388439781,1759168389438,-500.0,0.00016973,2]
[388439782,1759168389448,-500.0,0.00016973,2]
[388439783,1759168389459,-500.0,0.00016973,2]
[388439784,1759168389469,-500.0,0.00016973,2]
[388439785,1759168389479,-500.0,0.00016973,2]
[388439786,1759168389491,-500.0,0.00016973,2]
[388439787,1759168389500,-562.5287038,0.00016973,2]
[388439788,1759168389510,-500.0,0.00016973,2]
[388439789,1759168389519,-500.0,0.00016973,2]
[388439790,1759168389530,-500.0,0.00016973,2]
[388439791,1759168389540,-468.46191497,0.00016973,2]
[388439792,1759168389549,-500.0,0.00016973,2]
[388439793,1759168389559,-500.0,0.00016973,2]
[388439794,1759168389569,-3000.0,0.0001698,2]
[388439795,1759168389579,-599.60298507,0.0001698,2]
[388439796,1759168389590,-8260.13072239,0.0001698,2]
[388439797,1759168389600,-151.0,0.0001698,2]
[388439798,1759168389609,-239.84119403,0.0001698,2]
[388439799,1759168389620,-150.0,0.00016983,2]
[388439800,1759168389629,-150.0,0.00016983,2]
[388439801,1759168389640,-500.0,0.00016983,2]
[388439802,1759168389650,-3418.679,0.00016988,2]
[388439803,1759168389659,-168.387,0.00016988,2]
[388439804,1759168389669,-700.0,0.00016988,2]
[388439805,1759168389679,-151.0,0.0001699,2]
[388439806,1759168389689,-500.0,0.0001699,2]
[388439807,1759168389699,-510.72004335,0.0001699,2]
[388439808,1759168389709,-151.0,0.0001699,2]
[388439809,1759168389718,-500.0,0.0001699,2]
[388439810,1759168389728,-500.0,0.0001699,2]
[388439811,1759168389737,-500.0,0.0001699,2]
[388439812,1759168389747,-500.0,0.0001699,2]
[388439813,1759168389756,-500.0,0.0001699,2]
[388439814,1759168389766,-500.0,0.0001699,2]
[388439815,1759168389775,-500.0,0.0001699,2]
[388439816,1759168389785,-500.0,0.0001699,2]
[388439817,1759168389795,-500.0,0.0001699,2]
[388439818,1759168389805,-500.0,0.0001699,2]
[388439819,1759168389814,-500.0,0.0001699,2]
[388439820,1759168389824,-500.0,0.0001699,2]
[388439821,1759168389835,-500.0,0.0001699,2]
[388439822,1759168389844,-500.0,0.0001699,2]
[388439823,1759168389854,-500.0,0.0001699,2]
[388439824,1759168389864,-500.0,0.0001699,2]
[388439825,1759168389873,-500.0,0.0001699,2]
[388439826,1759168389883,-500.0,0.0001699,2]
[388439827,1759168389893,-500.0,0.0001699,2]
[388439828,1759168389902,-500.0,0.0001699,2]
[388439829,1759168389912,-500.0,0.0001699,2]
[388439830,1759168389925,-151.0,0.0001699,2]
[388439831,1759168389935,-500.0,0.0001699,2]
[388439832,1759168389945,-500.0,0.0001699,2]
[388439833,1759168389954,-151.0,0.0001699,2]
[388439834,1759168389966,-500.0,0.0001699,2]
[388439835,1759168389975,-322.6107,0.0001699,2]
[388439836,1759168389985,-151.0,0.0001699,2]
[388439837,1759168389996,-151.0,0.0001699,2]
[388439838,1759168390007,-500.0,0.0001699,2]
[388439839,1759168390017,-151.0,0.0001699,2]
[388439840,1759168390027,-500.0,0.0001699,2]
[388439841,1759168390037,-151.0,0.0001699,2]
[388439842,1759168390047,-151.0,0.0001699,2]
[388439843,1759168390058,-1000.0,0.0001699,2]
[388439844,1759168390069,-1000.0,0.0001699,2]
[388439845,1759168390078,-1000.0,0.0001699,2]
[388439846,1759168390089,-1000.0,0.0001699,2]
[388439847,1759168390099,-1000.0,0.0001699,2]
[388439848,1759168390109,-1000.0,0.0001699,2]
[388439849,1759168390118,-1000.0,0.0001699,2]
[388439850,1759168390127,-151.0,0.0001699,2]
[388439851,1759168390137,-500.0,0.0001699,2]
[388439852,1759168390146,-151.0,0.0001699,2]
[388439853,1759168390156,-1000.0,0.0001699,2]
[388439854,1759168390165,-623.58710448,0.0001699,2]
[388439855,1759168390175,-500.0,0.0001699,2]
[388439856,1759168390187,-151.0,0.0001699,2]
[388439857,1759168390196,-1000.0,0.0001699,2]
[388439858,1759168390206,-500.0,0.0001699,2]
[388439859,1759168390216,-151.0,0.0001699,2]
[388439860,1759168390227,-1000.0,0.0001699,2]
[388439861,1759168390237,-500.0,0.0001699,2]
[388439862,1759168390246,-151.0,0.0001699,2]
[388439863,1759168390256,-1000.0,0.0001699,2]
[388439864,1759168390266,-500.0,0.0001699,2]
[388439865,1759168390276,-151.0,0.0001699,2]
[388439866,1759168390286,-1000.0,0.0001699,2]
[388439867,1759168390296,-500.0,0.0001699,2]
[388439868,1759168390306,-151.0,0.0001699,2]
[388439869,1759168390316,-1000.0,0.0001699,2]
[388439870,1759168390326,-500.0,0.0001699,2]
[388439871,1759168390337,-151.0,0.0001699,2]
[388439872,1759168390347,-500.0,0.0001699,2]
[388439873,1759168390357,-151.0,0.0001699,2]
[388439874,1759168390367,-1000.0,0.0001699,2]
[388439875,1759168390376,-188.11971456,0.0001699,2]
[388439876,1759168390386,-500.0,0.0001699,2]
[388439877,1759168390404,-414.01305759,0.0001699,2]
[388439878,1759168390414,-500.0,0.0001699,2]
[388439879,1759168390423,-500.0,0.0001699,2]
[388439880,1759168390433,-469.22844977,0.0001699,2]
[388439881,1759168390443,-200.0,0.0001699,2]
[388439882,1759168390453,-200.0,0.0001699,2]
[388439883,1759168390463,-200.0,0.0001699,2]
[388439884,1759168390473,-200.0,0.0001699,2]
[388439885,1759168390483,-200.0,0.0001699,2]
[388439886,1759168390493,-200.0,0.0001699,2]
[388439887,1759168390505,-200.0,0.0001699,2]
[388439888,1759168390515,-200.0,0.0001699,2]
[388439889,1759168390524,-200.0,0.0001699,2]
[388439890,1759168390534,-200.0,0.0001699,2]
[388439891,1759168390543,-200.0,0.0001699,2]
[388439892,1759168390554,-200.0,0.0001699,2]
[388439893,1759168390563,-200.0,0.0001699,2]
[388439894,1759168390573,-244.05684574,0.0001699,2]
[388439895,1759168390584,-200.0,0.0001699,2]
[388439896,1759168390595,-200.0,0.0001699,2]
[388439897,1759168390604,-200.0,0.0001699,2]
[388439898,1759168390614,-200.0,0.0001699,2]
[388439899,1759168390623,-200.0,0.0001699,2]
[388439900,1759168390633,-500.0,0.0001699,2]
[388439901,1759168390642,-500.0,0.0001699,2]
[388439902,1759168390652,-500.0,0.0001699,2]
[388439903,1759168390661,-500.0,0.0001699,2]
[388439904,1759168390671,-500.0,0.0001699,2]
[388439905,1759168390680,-500.0,0.0001699,2]
[388439906,1759168390689,-500.0,0.0001699,2]
[388439907,1759168390699,-500.0,0.0001699,2]
[388439908,1759168390709,-150.0,0.0001699,2]
[388439909,1759168390718,-500.0,0.0001699,2]
[388439910,1759168390727,-500.0,0.0001699,2]
[388439911,1759168390737,-1435.0,0.0001699,2]
[388439912,1759168390747,-150.0,0.0001699,2]
[388439913,1759168390756,-150.0,0.0001699,2]
[388439914,1759168390766,-500.0,0.0001699,2]
[388439915,1759168390777,-150.0,0.0001699,2]
[388439916,1759168390787,-150.0,0.0001699,2]
[388439917,1759168390798,-150.0,0.0001699,2]
[388439918,1759168390808,-500.0,0.0001699,2]
[388439919,1759168390818,-500.0,0.0001699,2]
[388439920,1759168390827,-150.0,0.0001699,2]
[388439921,1759168390838,-150.0,0.0001699,2]
[388439922,1759168390847,-150.0,0.0001699,2]
[388439923,1759168390858,-500.0,0.0001699,2]
[388439924,1759168390867,-150.0,0.0001699,2]
[388439925,1759168390877,-183.79573144,0.0001699,2]
[388439926,1759168390888,-150.0,0.0001699,2]
[388439927,1759168390898,-150.0,0.0001699,2]
[388439928,1759168390908,-150.0,0.0001699,2]
[388439929,1759168390919,-500.0,0.0001699,2]
[388439930,1759168390933,-500.0,0.0001699,2]
[388439931,1759168390943,-500.0,0.0001699,2]
[388439932,1759168390954,-500.0,0.0001699,2]
[388439933,1759168390972,-150.0,0.0001699,2]
[388439934,1759168390982,-625.0,0.0001699,2]
[388439935,1759168390992,-150.0,0.0001699,2]
[388439936,1759168391004,-150.0,0.0001699,2]
[388439937,1759168391015,-466.51,0.0001699,2]
[388439938,1759168391025,-466.51,0.0001699,2]
[388439939,1759168391035,-300.0,0.00016999,2]
[388439940,1759168391045,-7542.54822902,0.00016999,2]
[388439941,1759168391055,-1110.0,0.00017,2]
[388439942,1759168391066,-72247.34519185,0.00017,2]
[388439943,1759168393128,-33398.07985193,0.00017,2]
[388439944,1759168393140,-556.8968615,0.00017,2]
[388439945,1759168393160,-750.0,0.00017,2]
[388439946,1759168393428,666.0,0.00015949,3]
[388439947,1759168393488,-14046.39738317,0.00017,2]
[388439948,1759168393508,-1192.04934,0.00017,2]
[388439949,1759168393519,-27499.71593,0.00017,2]
[388439950,1759168394073,-279.40859611,0.00016983,2]
[388439951,1759168394087,-220.59140389,0.00016983,2]
[388439952,1759168394097,-150.0,0.00016983,2]
[388439953,1759168394106,-103.20529524,0.00017,2]
[388439954,1759168394118,-789.74352181,0.00017,2]
[388439955,1759168394129,-428.25505818,0.00017,2]
[388439956,1759168394145,-5413.0,0.00017,2]
[388439957,1759168394161,-956.59274399,0.00017,2]
[388439958,1759168394172,-838.33949992,0.00017,2]
[388439959,1759168394184,-1141.946,0.00017,2]
[388439962,1759168484616,-7987.0,0.00017,2]
[388439963,1759168484632,-2349.04882896,0.00017,2]
[388439964,1759168484645,-84570.52689115,0.00017,2]
[388439965,1759168484699,-4397.87425975,0.00017,2]
[388439966,1759168484824,-383.5086327,0.00016983,2]
[388439967,1759168484836,-116.4913673,0.00016983,2]
[388439968,1759168484845,-2163.98474184,0.00017,2]
[388439969,1759168484863,-115831.82305593,0.00017,2]
[388439970,1759168484875,-21722.99744401,0.00017,2]
[388439971,1759168484889,-1692.2736255,0.00017,2]
[388439972,1759168484902,-709.11695095,0.00017,2]
[388439973,1759168484916,-626.8265502,0.00017,2]
[388439974,1759168484932,-4397.87425973,0.00017,2]
[388439975,1759168487189,97929.98,0.00015932,2]
[388439976,1759168488258,446.33,0.00015916,2]
[388439977,1759168488546,-300.0,0.00016618,2]
[388439978,1759168488568,-446.33,0.00016712,2]
[388439979,1759168488591,-411.39948039,0.00016899,2]
[388439980,1759168488613,-550.0,0.00016899,2]
[388439981,1759168497761,250.0,0.00016305,2]
[388439982,1759168498209,150.0,0.00015819,2]
[388439983,1759168499221,500.0,0.00015931,2]
[388439984,1759168499280,500.0,0.00015931,2]
[388439985,1759168499324,500.0,0.00015931,2]
[388439986,1759168500412,500.0,0.00015931,2]
[388439987,1759168500474,500.0,0.00015931,2]
[388439988,1759168500525,500.0,0.00015931,2]
[388439989,1759168500577,433.11615716,0.00015931,2]
[388439990,1759168500627,500.0,0.00015931,2]
[388439991,1759168500673,500.0,0.00015931,2]
[388439992,1759168500732,500.0,0.00015931,2]
[388439993,1759168502375,154.87225277,0.00015931,2]
[388439994,1759168504226,38500.0,0.00030137,120]
[388439995,1759168505406,8158.63,0.00015952,2]
[388439996,1759168505907,300.0,0.0001593,2]
[388439997,1759168510867,-8260.13072239,0.00016648,2]
[388439998,1759168510889,-163.70026438,0.00016648,2]
[388439999,1759168510913,-8565.75555911,0.00016703,2]
[388440000,1759168510937,-8882.6885148,0.00016758,2]
[388440001,1759168510961,-9211.34798985,0.00016813,2]
[388440002,1759168510984,-9552.16786547,0.00016868,2]
[388440003,1759168511006,-164.63957416,0.00016873,2]
[388440004,1759168511032,-484.70155814,0.00016874,2]
[388440005,1759168511054,-151.0,0.00016897,2]
[388440006,1759168511076,-738.63700139,0.000169,2]
[388440007,1759168511099,-201.41620955,0.000169,2]
[388440008,1759168511121,-9905.5980765,0.00016923,2]
[388440009,1759168511142,-670.11574852,0.00016952,2]
[388440010,1759168511165,-10272.10520533,0.00016978,2]
[388440011,1759168511187,-500.0,0.0001698,2]
[388440012,1759168511211,-500.0,0.0001698,2]
[388440013,1759168511234,-500.0,0.0001698,2]
[388440014,1759168511258,-500.0,0.0001698,2]
[388440015,1759168511281,-500.0,0.0001698,2]
[388440016,1759168511304,-500.0,0.0001698,2]
[388440017,1759168511327,-500.0,0.0001698,2]
[388440018,1759168511349,-500.0,0.0001698,2]
[388440019,1759168511373,-500.0,0.0001698,2]
[388440020,1759168511396,-500.0,0.0001698,2]
[388440021,1759168511418,-500.0,0.0001698,2]
[388440022,1759168511443,-500.0,0.0001698,2]
[388440023,1759168511466,-500.0,0.0001698,2]
[388440024,1759168511489,-500.0,0.0001698,2]
[388440025,1759168511513,-500.0,0.0001698,2]
[388440026,1759168511537,-500.0,0.0001698,2]
[388440027,1759168511559,-500.0,0.0001698,2]
[388440028,1759168511583,-500.0,0.0001698,2]
[388440029,1759168511606,-500.0,0.0001698,2]
[388440030,1759168511629,-500.0,0.0001698,2]
[388440031,1759168511653,-500.0,0.0001698,2]
[388440032,1759168511677,-500.0,0.0001698,2]
[388440033,1759168511703,-500.0,0.0001698,2]
[388440034,1759168511728,-500.0,0.0001698,2]
[388440035,1759168511750,-500.0,0.0001698,2]
[388440036,1759168511774,-269.54820062,0.0001698,2]
[388440037,1759168511802,-150.0,0.00016983,2]
[388440038,1759168511825,-150.0,0.00016983,2]
[388440039,1759168511849,-150.0,0.00016983,2]
[388440040,1759168511873,-500.0,0.00016983,2]
[388440041,1759168511896,-500.0,0.00016983,2]
[388440042,1759168511920,-150.0,0.00016983,2]
[388440043,1759168511946,-500.0,0.00016983,2]
[388440044,1759168511971,-1349.0,0.00016983,2]
[388440045,1759168511995,-150.0,0.00016983,2]
[388440046,1759168512018,-150.0,0.00016983,2]
[388440047,1759168512045,-150.0,0.00016983,2]
[388440048,1759168512487,-150.0,0.00016983,2]
[388440049,1759168512512,-150.0,0.00016983,2]
[388440050,1759168512535,-150.0,0.00016983,2]
[388440051,1759168512557,-151.0,0.00016987,2]
[388440052,1759168512580,-151.0,0.00016997,2]
[388440053,1759168512603,-891.0,0.00017,2]
[388440054,1759168512626,-55895.44750979,0.00017,2]
[388440055,1759168512771,300.0,0.0001593,2]
[388440056,1759168512812,300.0,0.0001593,2]
[388440057,1759168512981,1200.0,0.0001593,2]
[388440058,1759168513753,743.01277877,0.00030137,120]
[388440059,1759168535431,164.14,0.00016447,2]
[388440061,1759168570139,1378.45,0.00016359,2]
[388440160,1759168601795,197.96,0.00016323,2]
[388440294,1759168643670,599.94260978,0.00029041,120]
[388440359,1759168674397,200.0,0.00016287,2]
[388440393,1759168749064,345.1,0.00016488,2]
[388440395,1759168839028,1500.0,0.0001615,2]
[388440396,1759168903267,339.01,0.00016142,2]
[388440397,1759168929213,155.6,8.091e-05,2]
[388440398,1759168929481,155.6,8.99e-05,2]
[388440399,1759168929711,155.6,9.889e-05,2]
[388440400,1759168929908,155.6,0.00010788,2]
[388440401,1759168930123,155.6,0.00011686,2]
[388440402,1759168932639,155.6,0.00012585,2]
[388440403,1759168932902,155.6,0.00013484,2]
[388440404,1759168933133,155.6,0.00014383,2]
[388440405,1759168933424,155.6,0.00015282,2]
[388440406,1759168933649,155.6,0.00016181,2]
[388440409,1759168984731,1000.0,0.00016438,2]
[388440512,1759169123102,4839.06,0.00016,2]
[388440556,1759169134395,150.0,0.00016,7]
[388440570,1759169157024,2059.08,0.00016014,2]
[388440610,1759169182248,205.220072,0.00016536,2]
[388440632,1759169255424,1407.58,0.00016119,2]
[388440633,1759169258924,412.75,0.00015991,2]
[388440636,1759169290216,500.0,0.0001596,3]
[388440643,1759169358391,1111.55,0.00015967,2]
[388440658,1759169399189,250.0,0.00015957,2]
[388440663,1759169426421,516.41,0.0003,120]